bitfinex/quotes_SOLUSD_20240809
["timestamp","ask_amount","ask_price","bid_price","bid_amount"]
[1723184899109,27.49,156.49,156.48,15.9762]
[1723184899509,27.49,156.49,156.48,22.3667]
[1723184900125,27.49,156.51,156.48,15.9762]
[1723184900301,27.49,156.51,156.5,6.3897]
[1723184900723,27.49,156.51,156.48,22.3664]
[1723184901317,27.49,156.51,156.49,6.39]
[1723184901730,27.49,156.5,156.48,22.3667]
[1723184901910,27.49,156.5,156.48,15.9762]
[1723184902226,27.49,156.49,156.45,6.3914]
[1723184902413,27.49,156.49,156.46,6.3913]
[1723184902800,27.49,156.49,156.47,6.3908]
[1723184903125,27.49,156.5,156.48,6.3905]
[1723184903430,27.49,156.5,156.47,15.9774]
[1723184903431,27.49,156.5,156.49,6.3901]
[1723184903607,27.49,156.5,156.47,15.9774]
[1723184904003,27.49,156.49,156.47,15.9774]
[1723184904216,27.49,156.5,156.47,15.9774]
[1723184904906,27.49,156.5,156.49,6.3901]
[1723184905899,27.49,156.51,156.49,6.3901]
[1723184906921,43.8135,156.54,156.5,15.9744]
[1723184907129,27.49,156.53,156.5,22.3641]
[1723184907313,27.49,156.51,156.47,15.9774]
[1723184907518,27.49,156.48,156.44,47.94]
[1723184908613,27.49,156.48,156.47,6.391]
[1723184910231,27.49,156.52,156.45,27.49]
[1723184910424,27.49,156.52,156.44,31.9597]
[1723184910425,27.49,156.54,156.48,31.9519]
[1723184910729,27.49,156.57,156.56,6.3872]
[1723184910900,27.49,156.57,156.55,6.3877]
[1723184911097,27.49,156.56,156.54,15.9696]
[1723184911323,27.49,156.55,156.54,15.9696]
[1723184911528,27.49,156.55,156.5,15.9736]
[1723184911830,27.49,156.54,156.5,15.9736]
[1723184912007,27.49,156.55,156.53,6.3885]
[1723184912797,27.49,156.55,156.52,15.9715]
[1723184912798,27.49,156.55,156.52,22.3604]
[1723184913009,27.49,156.55,156.52,15.9715]
[1723184913210,27.49,156.55,156.52,22.36]
[1723184913431,27.49,156.55,156.53,6.3885]
[1723184914504,27.49,156.56,156.53,6.3885]
[1723184914705,27.49,156.55,156.52,22.3603]
[1723184916453,27.49,156.54,156.52,22.3603]
[1723184917619,27.49,156.54,156.52,15.9715]
[1723184917828,18.83,156.53,156.5,6.3897]
[1723184918019,18.83,156.51,156.5,6.3897]
[1723184918358,18.83,156.51,156.49,15.9751]
[1723184918641,18.83,156.51,156.49,22.3652]
[1723184918809,18.83,156.52,156.49,15.9751]
[1723184919015,18.83,156.52,156.51,6.3893]
[1723184919737,27.47,156.54,156.52,6.3887]
[1723184920045,27.47,156.54,156.51,6.3892]
[1723184921345,27.47,156.56,156.52,6.3888]
[1723184921828,33.8573,156.56,156.52,6.3888]
[1723184922543,27.47,156.54,156.5,6.3897]
[1723184924624,27.47,156.54,156.49,15.9751]
[1723184924625,33.8581,156.54,156.49,15.9751]
[1723184924927,27.47,156.54,156.49,15.9751]
[1723184925133,6.3878,156.55,156.46,27.47]
[1723184925134,27.47,156.5,156.46,15.9783]
[1723184925334,27.47,156.56,156.43,13.06218611]
[1723184925335,27.47,156.48,156.43,13.06218611]
[1723184925542,33.8606,156.48,156.43,28.8189]
[1723184925746,27.47,156.48,156.44,6.3921]
[1723184926253,27.47,156.46,156.43,22.3741]
[1723184926477,27.47,156.46,156.43,15.9815]
[1723184926755,27.47,156.45,156.42,0.8107353]
[1723184927856,27.47,156.46,156.42,0.8107353]
[1723184928031,27.47,156.47,156.42,0.8107353]
[1723184928236,27.47,156.48,156.43,15.9815]
[1723184928444,27.47,156.48,156.45,6.3918]
[1723184928659,27.47,156.49,156.46,6.3913]
[1723184928863,21.4219,156.51,156.46,6.3913]
[1723184929033,27.47,156.49,156.46,6.3913]
[1723184929356,27.47,156.5,156.47,6.3909]
[1723184929863,27.47,156.5,156.46,6.3913]
[1723184930948,21.4223,156.51,156.44,6.3918]
[1723184931155,27.47,156.47,156.43,15.9815]
[1723184931344,27.47,156.48,156.43,15.9815]
[1723184932864,15.0326,156.51,156.43,15.9815]
[1723184933060,27.47,156.5,156.45,6.3914]
[1723184933361,27.47,156.48,156.43,22.3737]
[1723184933576,27.47,156.47,156.43,22.3737]
[1723184934084,27.47,156.48,156.44,6.3921]
[1723184934467,27.47,156.48,156.44,6.3922]
[1723184935164,27.47,156.47,156.43,22.3741]
[1723184935365,27.47,156.48,156.43,22.3741]
[1723184935565,27.47,156.48,156.44,6.3922]
[1723184935985,27.47,156.49,156.44,6.3922]
[1723184936291,27.47,156.48,156.44,6.3922]
[1723184938787,33.8607,156.48,156.43,15.9815]
[1723184939004,33.8607,156.48,156.43,22.3739]
[1723184939190,27.47,156.48,156.43,22.3739]
[1723184939875,27.47,156.47,156.43,22.3739]
[1723184940480,27.47,156.48,156.43,15.9815]
[1723184940694,27.47,156.49,156.45,6.3916]
[1723184941178,27.47,156.5,156.46,15.978]
[1723184941376,27.47,156.49,156.46,15.978]
[1723184941588,27.47,156.48,156.42,16.7926353]
[1723184941768,18.85,156.47,156.43,45.0]
[1723184941968,18.85,156.46,156.43,45.0]
[1723184942186,18.85,156.45,156.42,23.1852353]
[1723184942889,18.85,156.46,156.44,6.3918]
[1723184943068,18.85,156.45,156.42,16.7926353]
[1723184944196,18.85,156.45,156.43,6.3925]
[1723184944389,18.85,156.45,156.42,23.1856353]
[1723184944564,18.85,156.45,156.43,6.3923]
[1723184945175,18.85,156.45,156.42,23.1855353]
[1723184946086,18.85,156.44,156.42,23.1855353]
[1723184946792,18.85,156.44,156.42,16.7926353]
[1723184947768,18.85,156.44,156.42,23.1854353]
[1723184949895,18.85,156.45,156.42,23.1854353]
[1723184950096,18.85,156.43,156.42,23.1854353]
[1723184950270,18.85,156.43,156.42,0.8107353]
[1723184950779,32.3363,156.52,156.42,16.7931353]
[1723184950980,18.85,156.45,156.43,6.3922]
[1723184951194,18.85,156.44,156.42,0.8107353]
[1723184951373,18.85,156.43,156.42,0.8107353]
[1723184951797,25.2426,156.43,156.42,0.8107353]
[1723184951998,18.85,156.43,156.42,0.8107353]
[1723184952989,25.2426,156.43,156.42,0.8107353]
[1723184956596,15.837,156.46,156.42,0.8107353]
[1723184956786,18.85,156.43,156.42,0.8107353]
[1723184957499,25.2426,156.43,156.42,0.8107353]
[1723184958773,18.85,156.43,156.42,7.2037353]
[1723184958976,18.85,156.44,156.42,7.2037353]
[1723184959284,18.85,156.43,156.42,0.8107353]
[1723184960183,6.3921,156.45,156.42,0.8107353]
[1723184960499,18.85,156.43,156.42,0.8107353]
[1723184963284,25.2426,156.43,156.42,0.8107353]
[1723184964219,25.2426,156.43,156.38,19.7145873]
[1723184964581,18.85,156.4,156.38,19.7145873]
[1723184964981,6.392,156.45,156.38,13.3200873]
[1723184965298,18.85,156.4,156.39,6.3942]
[1723184965496,18.85,156.41,156.39,6.3942]
[1723184965708,18.85,156.42,156.39,6.3942]
[1723184965888,18.85,156.41,156.39,6.3942]
[1723184968513,18.85,156.4,156.39,6.3942]
[1723184969026,18.85,156.4,156.38,13.3200873]
[1723184969611,18.85,156.4,156.38,19.7145873]
[1723184970517,18.85,156.4,156.39,6.3942]
[1723184970825,6.3926,156.43,156.38,13.3200873]
[1723184971036,18.85,156.4,156.38,13.3200873]
[1723184971233,18.85,156.4,156.38,19.7146873]
[1723184971733,18.85,156.39,156.38,19.7146873]
[1723184971906,18.85,156.39,156.38,13.3200873]
[1723184972401,18.85,156.4,156.38,13.3200873]
[1723184972601,18.85,156.4,156.38,19.7143873]
[1723184974707,18.85,156.39,156.38,19.7143873]
[1723184974915,18.85,156.4,156.38,19.7143873]
[1723184980319,18.85,156.41,156.38,19.7143873]
[1723184980636,18.85,156.41,156.39,45.0]
[1723184980814,18.85,156.4,156.39,45.0]
[1723184981014,18.85,156.4,156.38,19.7143873]
[1723184981521,6.3926,156.43,156.38,19.7143873]
[1723184981727,18.85,156.4,156.38,19.7143873]
[1723184982344,15.9771,156.48,156.39,65.12870793]
[1723184982512,18.85,156.43,156.39,65.12870793]
[1723184982724,18.85,156.43,156.39,46.27870793]
[1723184983629,18.85,156.42,156.39,45.0]
[1723184984050,18.85,156.42,156.39,51.3939]
[1723184985834,18.85,156.42,156.4,6.3937]
[1723184986030,18.85,156.43,156.4,6.3937]
[1723184987347,15.9173,156.49,156.4,41.2536]
[1723184987545,18.85,156.45,156.42,6.393]
[1723184987845,6.3911,156.47,156.42,6.393]
[1723184987846,18.85,156.44,156.42,6.393]
[1723184989098,6.3906,156.48,156.43,6.3926]
[1723184989237,18.85,156.45,156.43,6.3926]
[1723184989562,18.85,156.45,156.42,6.3929]
[1723184990721,18.85,156.45,156.43,6.3925]
[1723184991354,18.85,156.46,156.43,6.3925]
[1723184991839,18.85,156.51,156.49,6.39]
[1723184992046,18.85,156.51,156.48,6.3905]
[1723184992234,18.85,156.5,156.47,6.3909]
[1723184992555,18.85,156.51,156.48,6.3905]
[1723184992726,18.85,156.51,156.49,6.3901]
[1723184993157,18.85,156.5,156.44,45.0]
[1723184993453,18.85,156.47,156.44,6.392]
[1723184993637,90.9187,156.56,156.43,45.0]
[1723184993638,18.85,156.5,156.46,18.85]
[1723184993958,18.85,156.51,156.48,6.3902]
[1723184994135,18.85,156.51,156.49,6.3901]
[1723184994736,18.85,156.51,156.5,6.3897]
[1723184995058,18.85,156.52,156.51,6.3893]
[1723184995260,18.85,156.53,156.51,6.3893]
[1723184998059,21.906,156.56,156.51,6.3893]
[1723184998360,414.2704,156.63,156.52,34.8223]
[1723184998658,414.2704,156.63,156.56,6.3872]
[1723184998659,18.85,156.58,156.56,6.3872]
[1723184999153,18.85,156.58,156.56,6.3873]
[1723184999356,18.85,156.58,156.55,15.9692]
[1723184999552,18.85,156.57,156.55,15.9692]
[1723185000258,15.0085,156.63,156.58,15.9661]
[1723185000459,18.85,156.61,156.58,15.9661]
[1723185000856,15.2051,156.68,156.59,1.27708564]
[1723185001034,18.85,156.62,156.59,7.66268564]
[1723185001231,15.2051,156.68,156.6,79.8132]
[1723185001457,18.85,156.65,156.61,18.85]
[1723185001663,18.85,156.65,156.62,45.0]
[1723185001842,15.2051,156.68,156.63,15.9611]
[1723185002038,18.85,156.68,156.64,1.27656926]
[1723185002343,18.85,156.68,156.65,6.3832]
[1723185002864,6.3817,156.7,156.65,6.3832]
[1723185003067,6.3817,156.7,156.64,6.384]
[1723185003068,18.85,156.67,156.64,6.384]
[1723185003642,31.1147,156.78,156.66,15.9581]
[1723185003841,33.7913,156.71,156.66,15.9581]
[1723185004137,27.41,156.67,156.66,15.9581]
[1723185004366,27.41,156.68,156.66,15.9581]
[1723185004539,27.41,156.69,156.66,22.3409]
[1723185005445,27.41,156.7,156.67,6.3826]
[1723185005968,27.41,156.71,156.68,6.3822]
[1723185006647,27.41,156.69,156.66,22.341]
[1723185006850,27.41,156.68,156.66,15.9581]
[1723185007037,27.41,156.68,156.66,22.3412]
[1723185007233,27.41,156.7,156.68,6.3824]
[1723185008070,27.41,156.72,156.68,15.9551]
[1723185008676,27.41,156.73,156.68,15.9551]
[1723185009178,27.41,156.74,156.7,6.3815]
[1723185010875,27.41,156.74,156.71,6.3809]
[1723185012671,27.41,156.75,156.68,27.41]
[1723185012884,27.41,156.76,156.72,6.3806]
[1723185013967,6.3788,156.77,156.71,15.9527]
[1723185013968,27.41,156.77,156.73,6.3803]
[1723185014679,27.41,156.78,156.75,6.3794]
[1723185015471,27.41,156.76,156.74,15.9498]
[1723185015879,27.41,156.77,156.74,15.9498]
[1723185016474,27.41,156.77,156.74,22.3296]
[1723185017773,27.41,156.78,156.74,22.3296]
[1723185018082,27.41,156.75,156.71,15.9528]
[1723185018279,27.41,156.75,156.71,22.3336]
[1723185018584,27.41,156.75,156.72,6.3807]
[1723185020072,27.41,156.8,156.78,6.3783]
[1723185020270,27.41,156.8,156.73,27.41]
[1723185020271,28.2207353,156.81,156.79,6.3779]
[1723185020479,20.8107353,156.81,156.79,6.3779]
[1723185021178,0.8107353,156.81,156.8,6.3775]
[1723185021348,0.8107353,156.81,156.8,51.3775]
[1723185021548,0.8107353,156.81,156.8,52.6526395]
[1723185022452,0.8107353,156.81,156.8,59.1029395]
[1723185022656,0.8107353,156.81,156.8,106.5129395]
[1723185023086,27.41,156.92,156.85,15.938]
[1723185023251,27.41,156.92,156.86,45.0]
[1723185023656,27.41,156.91,156.86,45.0]
[1723185024171,27.41,156.92,156.89,6.3738]
[1723185024380,27.41,156.92,156.88,15.9354]
[1723185024682,27.41,156.92,156.89,45.0]
[1723185025780,27.41,156.92,156.88,22.3094]
[1723185026081,27.41,156.89,156.84,15.9388]
[1723185026382,27.41,156.9,156.88,6.3742]
[1723185026590,27.41,156.9,156.87,6.3746]
[1723185026758,27.41,156.9,156.88,51.3742]
[1723185026958,27.41,156.9,156.87,6.3746]
[1723185027173,27.41,156.9,156.88,6.3742]
[1723185028298,27.41,156.9,156.89,45.0]
[1723185028465,27.41,156.9,156.88,6.3742]
[1723185032966,16.3989,156.99,156.9,15.9334]
[1723185033163,27.41,156.95,156.91,45.0]
[1723185033390,27.41,156.95,156.91,51.3727]
[1723185034086,27.41,156.95,156.92,6.3726]
[1723185034278,27.41,156.95,156.91,51.373]
[1723185034791,27.41,156.95,156.92,6.3726]
[1723185035264,27.41,156.95,156.91,45.0]
[1723185035464,27.41,156.95,156.91,51.3729]
[1723185035674,27.41,156.95,156.92,6.3725]
[1723185036185,27.41,156.95,156.91,46.27442105]
[1723185036384,27.41,156.95,156.93,51.3722]
[1723185036576,27.41,156.94,156.91,45.0]
[1723185037082,27.41,156.95,156.91,45.0]
[1723185037478,27.41,156.95,156.91,51.373]
[1723185037974,27.41,156.93,156.91,45.0]
[1723185038168,27.41,156.93,156.9,22.3067]
[1723185039392,7.1816353,156.97,156.91,6.3728]
[1723185039566,27.41,156.94,156.92,6.3726]
[1723185041006,27.41,156.94,156.9,15.9334]
[1723185041998,0.8107353,156.97,156.93,15.9305]
[1723185042284,0.8107353,156.97,156.96,6.371]
[1723185042495,0.8107353,156.97,156.96,67.2986]
[1723185044115,28.2207353,156.97,156.96,67.2986]
[1723185044980,0.8107353,156.97,156.96,67.2986]
[1723185048089,28.2207353,156.97,156.92,22.3867]
[1723185048286,27.41,156.95,156.93,6.3722]
[1723185048688,27.41,156.95,156.94,6.3718]
[1723185049091,28.2207353,156.97,156.95,6.3712]
[1723185049410,0.8107353,156.97,156.96,6.371]
[1723185050291,28.2207353,156.97,156.96,6.371]
[1723185050718,28.2207353,156.97,156.95,15.928]
[1723185050719,28.2207353,156.97,156.95,22.2994]
[1723185052613,28.2207353,156.97,156.95,15.928]
[1723185053597,28.2207353,156.97,156.92,22.3036]
[1723185053797,0.8107353,156.97,156.93,6.3722]
[1723185054315,0.8107353,156.97,156.88,15.9347]
[1723185054316,20.8107353,156.97,156.88,15.9347]
[1723185054492,6.3716,156.95,156.9,6.3731]
[1723185055119,90.2392,156.96,156.91,15.9323]
[1723185055416,18.74,156.92,156.91,15.9323]
[1723185055795,27.32,156.95,156.94,15.9294]
[1723185056824,27.32,156.95,156.94,22.3011]
[1723185057321,27.32,156.95,156.94,67.3011]
[1723185057520,28.1307353,156.97,156.96,6.371]
[1723185057814,28.1307353,156.97,156.94,22.3011]
[1723185058015,27.32,156.95,156.94,22.3011]
[1723185058326,27.32,156.95,156.87,31.8721]
[1723185058496,27.32,156.95,156.86,63.5854]
[1723185058497,27.32,156.91,156.9,15.9327]
[1723185058693,27.32,156.91,156.87,15.9366]
[1723185058914,27.32,156.9,156.88,6.3739]
[1723185059119,27.32,156.9,156.87,15.9366]
[1723185059120,27.32,156.9,156.89,6.3738]
[1723185059594,27.32,156.91,156.9,6.3731]
[1723185060618,27.32,156.91,156.89,22.3077]
[1723185060826,27.32,156.9,156.89,22.3077]
[1723185063517,27.32,156.91,156.9,22.3071]
[1723185063719,27.32,156.92,156.91,6.373]
[1723185063923,27.32,156.92,156.91,22.3057]
[1723185065530,27.32,156.92,156.88,22.3097]
[1723185065735,16.0222,156.93,156.89,6.3738]
[1723185066226,6.3727,156.92,156.88,15.9355]
[1723185066404,22.3945,156.93,156.88,15.9355]
[1723185066728,27.32,156.89,156.88,22.3096]
[1723185067497,27.32,156.89,156.88,67.3096]
[1723185067714,27.32,156.91,156.9,22.3071]
[1723185068110,27.32,156.91,156.9,67.3071]
[1723185069106,27.32,156.92,156.91,6.373]
[1723185069738,27.32,156.94,156.93,22.3028]
[1723185070115,27.32,156.94,156.93,15.9306]
[1723185070312,27.32,156.94,156.9,15.9334]
[1723185070511,27.32,156.91,156.9,15.9334]
[1723185071221,27.32,156.91,156.87,15.9365]
[1723185071433,27.32,156.88,156.87,15.9365]
[1723185071738,54.64,156.88,156.85,6.3751]
[1723185072043,27.32,156.86,156.85,6.3755]
[1723185072342,27.32,156.86,156.8,22.60030497]
[1723185072515,27.32,156.81,156.8,22.3206]
[1723185073633,27.32,156.82,156.81,22.3199]
[1723185073839,27.32,156.88,156.8,31.8863]
[1723185073840,27.32,156.84,156.8,31.8863]
[1723185074010,27.32,156.85,156.83,15.9408]
[1723185074627,27.32,156.85,156.84,6.3759]
[1723185077043,15.0201,156.91,156.87,6.3746]
[1723185077338,27.32,156.87,156.86,15.9377]
[1723185077912,27.32,156.87,156.86,22.3128]
[1723185078114,27.32,156.89,156.88,22.3099]
[1723185078537,27.32,156.89,156.88,15.9357]
[1723185079845,27.32,156.89,156.88,22.3099]
[1723185080442,27.32,156.91,156.9,6.3731]
[1723185080620,27.32,156.91,156.9,51.3731]
[1723185082813,27.32,156.91,156.89,6.3737]
[1723185083622,54.64,156.9,156.84,15.9389]
[1723185083821,27.32,156.87,156.84,15.9389]
[1723185084031,6.3731,156.91,156.86,6.3751]
[1723185084352,16.5963,156.95,156.84,15.9389]
[1723185084354,27.32,156.87,156.85,6.3755]
[1723185084642,27.32,156.86,156.85,6.3753]
[1723185086561,27.32,156.86,156.84,15.9389]
[1723185086722,27.32,156.86,156.79,1.27511158]
[1723185086927,27.32,156.86,156.85,6.3755]
[1723185088524,27.32,156.86,156.84,15.9391]
[1723185088525,27.32,156.86,156.84,22.3149]
[1723185088728,27.32,156.86,156.84,15.9391]
[1723185090756,27.32,156.85,156.84,22.315]
[1723185092342,27.32,156.85,156.81,15.9426]
[1723185092542,27.32,156.82,156.79,6.3776]
[1723185092744,27.32,156.88,156.78,22.324]
[1723185092745,27.32,156.8,156.78,22.324]
[1723185093351,54.64,156.8,156.78,15.9457]
[1723185093857,27.32,156.8,156.78,15.9457]
[1723185094358,27.32,156.82,156.81,6.3771]
[1723185095758,27.32,156.82,156.8,22.3203]
[1723185095963,27.32,156.81,156.8,22.3203]
[1723185097637,27.32,156.81,156.76,15.9469]
[1723185097846,15.9415,156.89,156.77,1.27559655]
[1723185098028,27.32,156.84,156.83,6.3759]
[1723185098225,27.32,156.84,156.8,15.9438]
[1723185098450,27.32,156.82,156.8,15.9438]
[1723185100356,27.32,156.81,156.75,6.3792]
[1723185100562,27.32,156.76,156.75,6.3792]
[1723185101763,27.32,156.78,156.77,22.3254]
[1723185102231,27.32,156.78,156.77,15.9467]
[1723185102652,27.32,156.78,156.77,22.3254]
[1723185103753,27.32,156.8,156.79,6.3779]
[1723185103950,27.32,156.82,156.81,6.3768]
[1723185105437,27.32,156.84,156.83,6.3762]
[1723185106734,6.3808,156.92,156.83,6.3762]
[1723185106735,27.32,156.86,156.84,6.3758]
[1723185107233,27.32,156.86,156.85,6.3755]
[1723185108068,15.772,156.91,156.83,15.9408]
[1723185108069,27.32,156.88,156.86,6.3747]
[1723185108542,27.32,156.88,156.83,15.9408]
[1723185108543,27.32,156.88,156.83,22.317]
[1723185108741,27.32,156.86,156.83,22.317]
[1723185109459,27.32,156.84,156.81,6.3769]
[1723185109658,27.32,156.82,156.81,6.3769]
[1723185109852,27.32,156.84,156.81,45.0]
[1723185110038,27.32,156.84,156.8,15.9436]
[1723185110350,15.772,156.91,156.85,6.3752]
[1723185110351,27.32,156.86,156.85,6.3752]
[1723185110557,27.32,156.86,156.83,15.9408]
[1723185110862,27.32,156.84,156.83,15.9408]
[1723185111239,27.32,156.84,156.8,6.3775]
[1723185111459,27.32,156.81,156.79,15.9439]
[1723185111663,27.32,156.81,156.8,6.3775]
[1723185112348,27.32,156.81,156.79,22.3218]
[1723185112934,27.32,156.81,156.79,15.9439]
[1723185113946,27.32,156.81,156.79,22.3218]
[1723185114255,27.32,156.81,156.8,6.3775]
[1723185116546,61.0172,156.81,156.76,6.3788]
[1723185116752,27.32,156.77,156.76,6.3788]
[1723185117151,27.32,156.77,156.75,15.948]
[1723185118353,27.32,156.77,156.76,6.3791]
[1723185118675,27.32,156.79,156.78,6.378]
[1723185119244,27.32,156.79,156.77,6.3787]
[1723185119465,27.32,156.79,156.75,15.948]
[1723185119676,27.32,156.76,156.75,22.3275]
[1723185120169,27.32,156.76,156.75,15.948]
[1723185120563,27.32,156.76,156.75,22.3275]
[1723185121277,27.32,156.78,156.77,6.3784]
[1723185121475,27.32,156.8,156.79,22.3223]
[1723185122184,27.32,156.8,156.79,15.9444]
[1723185122476,27.32,156.8,156.79,22.3223]
[1723185123157,27.32,156.8,156.76,15.9478]
[1723185123359,27.32,156.78,156.77,6.3787]
[1723185123782,27.32,156.78,156.76,22.3268]
[1723185125161,27.32,156.78,156.77,6.3787]
[1723185125364,27.32,156.78,156.76,15.9478]
[1723185125678,27.32,156.77,156.76,15.9478]
[1723185126156,27.32,156.77,156.7,47.234]
[1723185126356,27.32,156.71,156.69,13.23660834]
[1723185126580,27.32,156.72,156.69,22.5268]
[1723185126757,27.32,156.72,156.71,6.381]
[1723185127078,27.32,156.74,156.73,22.3311]
[1723185128484,27.32,156.74,156.73,15.9508]
[1723185129059,27.32,156.74,156.73,22.3311]
[1723185129376,15.9832,156.78,156.77,6.3787]
[1723185129577,43.3032,156.78,156.77,6.3787]
[1723185130787,43.3032,156.78,156.76,6.3791]
[1723185130958,27.32,156.79,156.77,15.946]
[1723185131155,27.32,156.79,156.78,6.378]
[1723185131374,27.32,156.79,156.77,22.3247]
[1723185131575,27.32,156.79,156.77,15.946]
[1723185132084,27.32,156.78,156.74,15.9498]
[1723185132295,27.32,156.75,156.74,15.9498]
[1723185132458,27.32,156.75,156.71,15.9529]
[1723185132658,27.32,156.73,156.71,15.9529]
[1723185132873,27.32,156.75,156.74,15.9495]
[1723185133084,27.32,156.76,156.75,6.3794]
[1723185133571,27.32,156.76,156.74,15.9495]
[1723185133768,27.32,156.75,156.74,22.3294]
[1723185134285,27.32,156.76,156.75,6.3795]
[1723185134472,27.32,156.76,156.74,22.3294]
[1723185134783,27.32,156.75,156.74,22.3294]
[1723185135091,27.32,156.76,156.75,6.3795]
[1723185136688,27.32,156.77,156.76,6.3787]
[1723185136989,27.32,156.78,156.77,6.3784]
[1723185139222,27.32,156.78,156.76,15.9471]
[1723185139369,27.32,156.78,156.77,6.3787]
[1723185139773,27.32,156.79,156.78,6.378]
[1723185140882,27.32,156.79,156.77,6.3786]
[1723185141390,27.32,156.79,156.76,15.9471]
[1723185141595,27.32,156.77,156.76,22.3261]
[1723185142982,27.32,156.79,156.78,6.3781]
[1723185143790,27.32,156.79,156.77,6.3787]
[1723185144178,27.32,156.78,156.76,22.3262]
[1723185144504,27.32,156.77,156.75,6.3795]
[1723185144700,27.32,156.76,156.75,6.3795]
[1723185145191,27.32,156.77,156.76,6.3789]
[1723185146890,27.32,156.77,156.7,15.9539]
[1723185147191,27.32,156.74,156.7,15.9539]
[1723185147499,27.32,156.75,156.72,15.9512]
[1723185147674,33.6979,156.8,156.72,15.9512]
[1723185147675,27.32,156.76,156.74,6.3799]
[1723185148377,27.32,156.76,156.75,6.3795]
[1723185150185,27.32,156.78,156.76,6.3789]
[1723185150697,27.32,156.79,156.77,6.3787]
[1723185151003,27.32,156.78,156.75,6.3792]
[1723185151206,27.32,156.77,156.76,6.3791]
[1723185151497,6.3771,156.81,156.76,6.3791]
[1723185151498,27.32,156.78,156.76,6.3791]
[1723185151894,27.32,156.79,156.76,15.947]
[1723185152595,27.32,156.81,156.78,15.9449]
[1723185152894,27.32,156.81,156.79,6.3775]
[1723185153072,27.32,156.8,156.75,22.328]
[1723185153283,27.32,156.77,156.75,22.328]
[1723185154000,27.32,156.77,156.76,6.3791]
[1723185155598,27.32,156.78,156.77,6.3786]
[1723185156579,27.32,156.8,156.79,6.3777]
[1723185157096,27.32,156.82,156.8,22.3213]
[1723185157672,6.3758,156.85,156.8,22.3213]
[1723185157673,27.32,156.81,156.8,22.3213]
[1723185158093,16.6578,156.87,156.85,15.938]
[1723185158292,27.32,156.86,156.85,22.3135]
[1723185159699,27.32,156.87,156.86,6.3748]
[1723185160202,27.32,156.88,156.86,6.3748]
[1723185160402,27.32,156.89,156.87,15.9358]
[1723185160609,27.32,156.9,156.89,6.3736]
[1723185160899,27.32,156.91,156.89,6.3736]
[1723185161309,15.968,156.95,156.9,15.9336]
[1723185161612,257.0,156.98,156.9,15.9336]
[1723185161613,27.32,156.94,156.9,15.9336]
[1723185162120,27.32,156.92,156.91,6.3729]